fUST/lending_fUST_20251105
["ID","MTS","AMOUNT","RATE_DAILY","PERIOD"]
[393212406,1762324052951,-700.70997919,0.00019178,2]
[393212407,1762324052973,-700.70997919,0.00019178,2]
[393212408,1762324052994,-700.70997919,0.00019178,2]
[393212409,1762324053019,-690.69983662,0.00019178,2]
[393212410,1762324053041,-690.69983662,0.00019178,2]
[393212411,1762324053063,-690.69983662,0.00019178,2]
[393212412,1762324053101,-690.69983662,0.00019178,2]
[393212413,1762324053135,-690.69983662,0.00019178,2]
[393212414,1762324053163,-690.69983662,0.00019178,2]
[393212415,1762324053193,-690.69983662,0.00019178,2]
[393212416,1762324053224,-690.69983662,0.00019178,2]
[393212417,1762324053256,-690.69983662,0.00019178,2]
[393212418,1762324053286,-690.69983662,0.00019178,2]
[393212419,1762324053317,-690.69983662,0.00019178,2]
[393212420,1762324053349,-690.69983662,0.00019178,2]
[393212421,1762324053379,-690.69983662,0.00019178,2]
[393212422,1762324053407,-690.69983662,0.00019178,2]
[393212423,1762324053431,-690.69983662,0.00019178,2]
[393212424,1762324053457,-690.69983662,0.00019178,2]
[393212425,1762324053490,-690.69983662,0.00019178,2]
[393212426,1762324053519,-690.69983662,0.00019178,2]
[393212427,1762324053547,-690.69983662,0.00019178,2]
[393212428,1762324053575,-690.69983662,0.00019178,2]
[393212429,1762324053599,-690.69983662,0.00019178,2]
[393212430,1762324053627,-690.69983662,0.00019178,2]
[393212431,1762324053657,-690.69983662,0.00019178,2]
[393212432,1762324053680,-690.69983662,0.00019178,2]
[393212433,1762324053711,-690.69983662,0.00019178,2]
[393212434,1762324053738,-690.69983662,0.00019178,2]
[393212435,1762324053762,-690.69983662,0.00019178,2]
[393212436,1762324053789,-690.69983662,0.00019178,2]
[393212437,1762324053817,-690.69983662,0.00019178,2]
[393212438,1762324053842,-690.69983662,0.00019178,2]
[393212439,1762324053867,-690.69983662,0.00019178,2]
[393212440,1762324053891,-690.69983662,0.00019178,2]
[393212441,1762324053916,-690.69983662,0.00019178,2]
[393212442,1762324053939,-150.0,0.00019178,2]
[393212443,1762324053966,-152.43,0.000192,2]
[393212444,1762324053996,-1892.45502113,0.00019216,2]
[393212445,1762324054022,-160.0,0.00019231,2]
[393212446,1762324054047,-150.53368067,0.00019315,2]
[393212447,1762324054072,-500.0,0.00019316,2]
[393212448,1762324054098,-1851.95606166,0.00019316,2]
[393212449,1762324054123,-500.0,0.0001959,2]
[393212450,1762324054151,-12220.3105915,0.00019666,2]
[393212451,1762324054179,-394.27948453,0.00019681,2]
[393212452,1762324054205,-151.0,0.000197,2]
[393212453,1762324054233,-407.19153991,0.00019721,2]
[393212454,1762324054260,-1000.0,0.00019721,2]
[393212455,1762324054288,-481.21976242,0.00019721,2]
[393212456,1762324054316,-260.0,0.00019779,2]
[393212457,1762324054341,-465.62333588,0.00019783,2]
[393212458,1762324054364,-501.82486731,0.00019783,2]
[393212459,1762324054387,-500.0,0.00019783,2]
[393212460,1762324054409,-452.50798419,0.00019783,2]
[393212461,1762324054588,-500.0,0.00019783,2]
[393212462,1762324054626,-770.14,0.00019802,2]
[393212463,1762324054650,-720.0,0.00019827,2]
[393212464,1762324054673,-500.0,0.00019864,2]
[393212465,1762324054698,-223.34226752,0.00019945,2]
[393212466,1762324054721,-1159.96264918,0.0002,2]
[393212467,1762324054743,-321.29318294,0.0002,2]
[393212468,1762324054765,-500.0,0.0002,2]
[393212469,1762324054787,-200.0,0.0002,2]
[393212470,1762324054809,-587.0,0.00020035,2]
[393212471,1762324054830,-1851.95606166,0.00020039,2]
[393212472,1762324054851,-714.81913282,0.00020087,2]
[393212473,1762324054875,-422.45185066,0.00020138,2]
[393212474,1762324054897,-878.698328,0.00020187,2]
[393212475,1762324054919,-1500.0,0.00020268,2]
[393212476,1762324054942,-360.0,0.00020327,2]
[393212477,1762324054963,-1000.0,0.00020331,2]
[393212478,1762324054985,-1000.0,0.00020331,2]
[393212479,1762324055010,-880.16,0.00020535,2]
[393212480,1762324055032,-1119.0,0.00020618,2]
[393212481,1762324055052,-1851.95606166,0.00020761,3]
[393212482,1762324055072,-2000.0,0.00020816,2]
[393212483,1762324055091,-460.0,0.00020875,2]
[393212484,1762324055111,-1500.0,0.00020879,2]
[393212485,1762324055132,-509.3229072,0.00020879,2]
[393212486,1762324055151,-254.23871392,0.000209,2]
[393212487,1762324055170,-28871.77665256,0.00021,2]
[393212488,1762324055189,-714.81913282,0.00021035,3]
[393212489,1762324055215,-986.0,0.00021166,2]
[393212490,1762324055235,-628.0,0.00021166,2]
[393212491,1762324055255,-2165.0,0.00021166,2]
[393212492,1762324055275,-412.0,0.00021166,2]
[393212493,1762324055297,-151.0,0.000212,3]
[393212494,1762324055317,-150.0,0.0002126,2]
[393212495,1762324055336,-150.0,0.0002126,2]
[393212496,1762324055356,-150.0,0.0002126,2]
[393212497,1762324055376,-150.0,0.0002126,2]
[393212498,1762324055395,-150.0,0.0002126,2]
[393212499,1762324055421,-990.18,0.00021269,2]
[393212500,1762324055447,-600.0,0.00021312,2]
[393212501,1762324055467,-1008.78527071,0.00021364,2]
[393212502,1762324055488,-560.0,0.00021423,2]
[393212503,1762324055508,-2000.0,0.00021427,2]
[393212504,1762324055528,-1851.95606166,0.00021484,3]
[393212505,1762324055549,-600.0,0.00021534,2]
[393212506,1762324055570,-2000.0,0.00021667,7]
[393212507,1762324055589,-446.46353395,0.00021681,2]
[393212508,1762324055613,-600.0,0.00021756,2]
[393212509,1762324055634,-823.0,0.00021888,2]
[393212510,1762324055655,-150.0,0.000219,3]
[393212511,1762324055675,-151.0,0.000219,3]
[393212512,1762324055697,-151.0,0.000219,3]
[393212513,1762324055718,-406.25640549,0.00021918,7]
[393212514,1762324055738,-150.0,0.00021918,7]
[393212515,1762324055758,-660.0,0.00021971,2]
[393212516,1762324055778,-2500.0,0.00021975,2]
[393212517,1762324055799,-600.0,0.00021978,2]
[393212518,1762324055820,-714.81913282,0.00021984,4]
[393212519,1762324055840,-10579.70778724,0.00022,2]
[393212520,1762324055860,-929.0803943,0.00022,5]
[393212533,1762324075689,-150.0,0.00015127,2]
[393212534,1762324075716,-150.0,0.0001528,2]
[393212535,1762324075742,-87.74800724,0.00016007,2]
[393212538,1762324090774,-62.25199276,0.00016007,2]
[393212539,1762324090796,-387.74800724,0.00016135,2]
[393212540,1762324090822,-157.36738231,0.00016371,2]
[393212542,1762324096825,5000.0,0.00016371,2]
[393212544,1762324099799,527.52089801,0.0003773,31]
[393212545,1762324101844,304.126803,0.0003773,30]
[393212546,1762324103882,720.0,0.00021517,20]
[393212547,1762324104595,487.42688074,0.0002,120]
[393212548,1762324106698,462.44257988,0.0003773,30]
[393212549,1762324106879,235.23618596,0.0003773,30]
[393212553,1762324111132,1419.10401853,0.00032,120]
[393212554,1762324111352,1721.30026275,0.0002,120]
[393212557,1762324113340,204.2585917,0.0003773,30]
[393212559,1762324114569,271.08011441,0.0003773,30]
[393212564,1762324115298,453.899995,0.0003,120]
[393212565,1762324116763,300.0,0.0003773,30]
[393212567,1762324119534,274.60985469,0.0003773,30]
[393212576,1762324161382,864.0,0.0002144,20]
[393212577,1762324172904,547.37,0.0003773,60]
[393212578,1762324173148,547.37,0.0003773,60]
[393212579,1762324173382,547.37,0.0003773,60]
[393212580,1762324173643,547.37,0.0003773,60]
[393212581,1762324173863,547.37,0.0003773,60]
[393212582,1762324174109,547.37,0.0003773,60]
[393212583,1762324174346,547.37,0.0003773,60]
[393212584,1762324174625,547.37,0.0003773,60]
[393212585,1762324174869,547.37,0.0003773,60]
[393212586,1762324175119,547.37,0.0003773,60]
[393212587,1762324175363,547.37,0.0003773,60]
[393212588,1762324175620,547.37,0.0003773,60]
[393212589,1762324175881,547.37,0.0003773,60]
[393212590,1762324176128,547.37,0.0003773,60]
[393212591,1762324176403,547.37,0.0003773,60]
[393212592,1762324176643,547.37,0.0003773,120]
[393212593,1762324176907,547.37,0.0003773,120]
[393212594,1762324177145,547.37,0.0003773,120]
[393212595,1762324177388,547.37,0.0003773,120]
[393212596,1762324177634,547.37,0.0003773,120]
[393212597,1762324177878,547.37,0.0003773,120]
[393212598,1762324178303,547.37,0.0003773,120]
[393212599,1762324178375,547.37,0.0003773,120]
[393212600,1762324178592,547.47363766,0.0003773,120]
[393212604,1762324203990,2000.0,0.0002,7]
[393212605,1762324209074,167.0,0.00024283,120]
[393212606,1762324210635,167.0,0.00025497,120]
[393212607,1762324212114,167.0,0.00026772,120]
[393212653,1762324239722,-150.0,0.0001624,2]
[393212654,1762324239732,-103.08900659,0.00016371,2]
[393212655,1762324239744,-1000.0,0.00016422,2]
[393212656,1762324239755,-7931.83282818,0.00017,2]
[393212657,1762324239765,-150.0,0.00017013,2]
[393212658,1762324239776,-300.0,0.00017372,2]
[393212659,1762324239786,-500.0,0.00017373,2]
[393212660,1762324239796,-80706.93797962,0.00017373,2]
[393212689,1762324240854,-40679.5228,0.00017373,2]
[393212690,1762324241202,-3e-08,0.00017373,2]
[393212691,1762324242024,193.0,0.00024329,120]
[393212700,1762324243771,-4755.79579999,0.00017373,2]
[393212701,1762324243782,-10162.5468,0.00017373,2]
[393212702,1762324243838,193.0,0.00025546,120]
[393212705,1762324245229,193.0,0.00026823,120]
[393212709,1762324246800,-835.13298389,0.00017373,2]
[393212710,1762324247289,193.0,0.00028164,120]
[393212711,1762324248612,-16978.686231,0.00017373,2]
[393212712,1762324248623,-4905.31990758,0.00017373,2]
[393212713,1762324248750,193.0,0.00029572,120]
[393212714,1762324250213,193.0,0.00031051,120]
[393212715,1762324251523,193.0,0.00032603,120]
[393212725,1762324405742,-150.0,0.00015285,2]
[393212726,1762324405765,-210.09170906,0.00015649,2]
[393212731,1762324459452,-150.0,0.00015217,2]
[393212732,1762324459603,-45.15555206,0.00015649,2]
[393212733,1762324459628,-100.53598638,0.00016013,2]
[393212735,1762324518738,150.0,0.00015266,2]
[393212736,1762324519155,150.0,0.00015993,2]
[393212737,1762324531719,193.0,0.00027384,120]
[393212738,1762324533020,193.0,0.00028754,120]
[393212739,1762324534314,193.0,0.00030191,120]
[393212740,1762324547599,5000.0,0.00016741,2]
[393212741,1762324555726,4700.01,0.00016741,2]
[393212742,1762324560468,-299.99,0.00016741,2]
[393212743,1762324595568,-150.0,0.00015202,2]
[393212744,1762324595593,-142.46086799,0.00015926,2]
[393212745,1762324609586,-7.53913201,0.00015926,2]
[393212746,1762324609606,-150.0,0.00016408,2]
[393212747,1762324609627,-88.62366551,0.00016574,2]
[393212748,1762324624993,-159.94209765,0.00016408,2]
[393212749,1762324628162,-168.00980162,0.00016408,2]
[393212750,1762324629748,-262.42991811,0.00016408,2]
[393212751,1762324632351,-9.61818262,0.00016408,2]
[393212752,1762324632373,-61.37633449,0.00016574,2]
[393212753,1762324632395,-155.00107539,0.00016574,2]
[393212754,1762324634908,-324.0608468,0.00016574,2]
[393212755,1762324636974,-59.56174332,0.00016574,2]
[393212756,1762324637001,-118.82457439,0.00016741,2]
[393212757,1762324639629,5000.0,0.00016408,2]
[393212758,1762324647591,5000.0,0.00016741,2]
[393212759,1762324668462,326.33,0.00037672,30]
[393212760,1762324730109,-150.0,0.00015306,2]
[393212761,1762324730133,-155.7801893,0.00015384,2]
[393212762,1762324744460,-150.0,0.00015205,2]
[393212763,1762324744481,-98.93767533,0.00015384,2]
[393212764,1762324744505,-99.6578057,0.00015929,2]
[393212783,1762324819437,-150.0,0.00015221,2]
[393212784,1762324819462,-92.8805285,0.00015946,2]
[393212785,1762324939391,-150.0,0.00015154,2]
[393212786,1762324939412,-150.0,0.00015307,2]
[393212787,1762324939438,-85.52273172,0.00015462,2]
[393212788,1762324981810,3200.0,0.00037672,30]
[393212789,1762324984400,-150.0,0.00015763,2]
[393212790,1762324984423,-145.09803928,0.00015922,2]
[393212791,1762324992697,300.0,0.00032,120]
[393212793,1762325045017,-4.90196072,0.00015922,2]
[393212794,1762325045040,-195.25313783,0.00015989,2]
[393212795,1762325074499,200.0,0.00032,120]
[393212796,1762325097355,200.0,0.00032,120]
[393212797,1762325301599,500.0,0.00037672,60]
[393212798,1762325301829,500.0,0.00037672,60]
[393212799,1762325302084,500.0,0.00037672,60]
[393212800,1762325302332,500.0,0.00037672,60]
[393212801,1762325302576,500.0,0.00037672,60]
[393212802,1762325302838,500.0,0.00037672,60]
[393212803,1762325303079,500.0,0.00037672,60]
[393212804,1762325303321,500.0,0.00037672,60]
[393212805,1762325303598,500.0,0.00037672,60]
[393212806,1762325303858,500.0,0.00037672,60]
[393212807,1762325304109,500.0,0.00037672,60]
[393212808,1762325304457,500.0,0.00037672,60]
[393212809,1762325304636,441.80906224,0.00037672,60]
[393212810,1762325389957,-150.0,0.00015246,2]
[393212811,1762325389983,-80.73758746,0.00015972,2]
[393212812,1762325404016,2000.0,0.0002,7]
[393212813,1762325421986,169.2010792,8.16e-05,2]
[393212872,1762325431869,-69.26241254,0.00015972,2]
[393212873,1762325431878,-251.62033954,0.00016022,2]
[393212874,1762325431887,-1064.7289361,0.00016056,2]
[393212876,1762325431898,-5.4098819,0.00016056,2]
[393212877,1762325431907,-171.733597,0.00016285,2]
[393212879,1762325431917,-209.39360592,0.00016574,2]
[393212881,1762325431926,-150.0,0.00016698,2]
[393212884,1762325431936,-234.387,0.00017025,2]
[393212885,1762325431945,-9600.2397624,0.0001731,2]
[393212887,1762325431954,-506.17177751,0.00017369,2]
[393212888,1762325431963,-154.28119694,0.00017369,2]
[393212889,1762325431972,-500.0,0.00017372,2]
[393212890,1762325431981,-500.0,0.00017372,2]
[393212891,1762325431990,-300.0,0.00017372,2]
[393212892,1762325432000,-525976.05749789,0.00017373,2]
[393212894,1762325432008,-150.0,0.00017424,2]
[393212896,1762325432017,-500.0,0.00017469,2]
[393212898,1762325432029,-500.0,0.00017472,2]
[393212900,1762325432039,-300.0,0.00017719,2]
[393212902,1762325432049,-300.0,0.00017719,2]
[393212904,1762325432058,-300.0,0.00017719,2]
[393212905,1762325432067,-300.0,0.00017719,2]
[393212906,1762325432205,-300.0,0.00017719,2]
[393212907,1762325432215,-300.0,0.00017719,2]
[393212908,1762325432224,-300.0,0.00017719,2]
[393212909,1762325432234,-300.0,0.00017719,2]
[393212910,1762325432243,-300.0,0.00017719,2]
[393212911,1762325432252,-300.0,0.00017719,2]
[393212912,1762325432262,-300.0,0.00017719,2]
[393212913,1762325432271,-300.0,0.00017719,2]
[393212914,1762325432280,-300.0,0.00017719,2]
[393212915,1762325432289,-300.0,0.00017719,2]
[393212916,1762325432298,-300.0,0.00017719,2]
[393212917,1762325432307,-600.0,0.00017719,2]
[393212918,1762325432316,-209.91550666,0.00017775,2]
[393212919,1762325432325,-296.91200066,0.00018022,2]
[393212920,1762325432334,-150.0,0.0001815,2]
[393212921,1762325432343,-628.0,0.00018475,2]
[393212922,1762325432352,-2165.0,0.00018475,2]
[393212923,1762325432361,-1111.695,0.00018475,2]
[393212924,1762325432371,-412.0,0.00018475,2]
[393212925,1762325432379,-150.0,0.00018876,2]
[393212926,1762325432388,-420.0,0.00018967,2]
[393212927,1762325432397,-325.177021,0.00019061,2]
[393212928,1762325432407,-500.0,0.00019178,2]
[393212929,1762325432415,-500.0,0.00019178,2]
[393212930,1762325432424,-500.0,0.00019178,2]
[393212931,1762325432434,-500.0,0.00019178,2]
[393212932,1762325432443,-500.0,0.00019178,2]
[393212933,1762325432452,-500.0,0.00019178,2]
[393212934,1762325432460,-500.0,0.00019178,2]
[393212935,1762325432470,-500.0,0.00019178,2]
[393212936,1762325432479,-500.0,0.00019178,2]
[393212937,1762325432488,-500.0,0.00019178,2]
[393212938,1762325432497,-500.0,0.00019178,2]
[393212939,1762325432506,-500.0,0.00019178,2]
[393212940,1762325432516,-500.0,0.00019178,2]
[393212941,1762325432525,-500.0,0.00019178,2]
[393212942,1762325432535,-500.0,0.00019178,2]
[393212943,1762325432544,-500.0,0.00019178,2]
[393212944,1762325432553,-500.0,0.00019178,2]
[393212945,1762325432562,-500.0,0.00019178,2]
[393212946,1762325432571,-500.0,0.00019178,2]
[393212947,1762325432581,-500.0,0.00019178,2]
[393212948,1762325432590,-500.0,0.00019178,2]
[393212949,1762325432599,-500.0,0.00019178,2]
[393212950,1762325432608,-500.0,0.00019178,2]
[393212951,1762325432617,-500.0,0.00019178,2]
[393212952,1762325432626,-410.08085931,0.00019178,2]
[393212953,1762325432635,-500.0,0.00019178,2]
[393212954,1762325432647,-1112.0,0.00019178,2]
[393212955,1762325432656,-151.0,0.00019178,2]
[393212956,1762325432665,-936.0,0.00019178,2]
[393212957,1762325432674,-500.0,0.00019178,2]
[393212958,1762325432683,-463.0,0.00019178,2]
[393212959,1762325432692,-500.0,0.00019178,2]
[393212960,1762325432701,-500.0,0.00019178,2]
[393212961,1762325432711,-500.0,0.00019178,2]
[393212962,1762325432720,-500.0,0.00019178,2]
[393212963,1762325432729,-500.0,0.00019178,2]
[393212964,1762325432738,-151.0,0.00019178,2]
[393212965,1762325432747,-500.0,0.00019178,2]
[393212966,1762325432756,-500.0,0.00019178,2]
[393212967,1762325432765,-236.03672767,0.00019178,2]
[393212968,1762325432774,-377.47006407,0.00019198,2]
[393212969,1762325432783,-1112.0,0.00019233,2]
[393212970,1762325432792,-151.0,0.00019233,2]
[393212971,1762325432801,-936.0,0.00019233,2]
[393212972,1762325432810,-500.0,0.00019233,2]
[393212973,1762325432819,-463.0,0.00019233,2]
[393212974,1762325432828,-500.0,0.00019233,2]
[393212975,1762325432837,-500.0,0.00019233,2]
[393212976,1762325432845,-500.0,0.00019233,2]
[393212977,1762325432855,-500.0,0.00019233,2]
[393212978,1762325432864,-500.0,0.00019233,2]
[393212979,1762325432873,-281.54746512,0.00019233,2]
[393212980,1762325432882,-500.0,0.00019233,2]
[393212981,1762325432891,-500.0,0.00019233,2]
[393212982,1762325432900,-1112.0,0.00019288,2]
[393212983,1762325432909,-205.09213973,0.00019288,2]
[393212984,1762325432918,-791.0,0.00019288,2]
[393212985,1762325432928,-936.0,0.00019288,2]
[393212986,1762325432937,-500.0,0.00019288,2]
[393212987,1762325432946,-463.0,0.00019288,2]
[393212988,1762325432956,-500.0,0.00019288,2]
[393212989,1762325432965,-500.0,0.00019288,2]
[393212990,1762325432974,-500.0,0.00019288,2]
[393212991,1762325432983,-500.0,0.00019288,2]
[393212992,1762325432992,-500.0,0.00019288,2]
[393212993,1762325433002,-500.0,0.00019288,2]
[393212994,1762325433011,-500.0,0.00019288,2]
[393212995,1762325433020,-1112.0,0.00019342,2]
[393212996,1762325433031,-791.0,0.00019342,2]
[393212997,1762325433041,-936.0,0.00019342,2]
[393212998,1762325433050,-500.0,0.00019342,2]
[393212999,1762325433059,-463.0,0.00019342,2]
[393213000,1762325433068,-500.0,0.00019342,2]
[393213001,1762325433078,-500.0,0.00019342,2]
[393213002,1762325433087,-650.3219898,0.00019342,2]
[393213003,1762325433097,-500.0,0.00019342,2]
[393213004,1762325433107,-500.0,0.00019342,2]
[393213005,1762325433120,-500.0,0.00019342,2]
[393213006,1762325433129,-500.0,0.00019342,2]
[393213007,1762325433138,-429.52039475,0.00019358,2]
[393213008,1762325433147,-1111.98841619,0.0001939,2]
[393213009,1762325433156,-1112.0,0.00019397,2]
[393213010,1762325433165,-791.0,0.00019397,2]
[393213011,1762325433177,-936.0,0.00019397,2]
[393213012,1762325433186,-500.0,0.00019397,2]
[393213013,1762325433195,-463.0,0.00019397,2]
[393213014,1762325433204,-500.0,0.00019397,2]
[393213015,1762325433213,-500.0,0.00019397,2]
[393213016,1762325433222,-500.0,0.00019397,2]
[393213017,1762325433232,-500.0,0.00019397,2]
[393213018,1762325433241,-500.0,0.00019397,2]
[393213019,1762325433249,-500.0,0.00019397,2]
[393213020,1762325433259,-154.28119693,0.00019415,2]
[393213021,1762325433268,-1112.0,0.00019452,2]
[393213022,1762325433277,-791.0,0.00019452,2]
[393213023,1762325433286,-936.0,0.00019452,2]
[393213024,1762325433295,-500.0,0.00019452,2]
[393213025,1762325433304,-463.0,0.00019452,2]
[393213026,1762325433318,-500.0,0.00019452,2]
[393213027,1762325433330,-500.0,0.00019452,2]
[393213028,1762325433343,-500.0,0.00019452,2]
[393213029,1762325433355,-500.0,0.00019452,2]
[393213030,1762325433367,-500.0,0.00019452,2]
[393213031,1762325433377,-500.0,0.00019452,2]
[393213032,1762325433388,-720.0,0.00019491,2]
[393213033,1762325433400,-1112.0,0.00019507,2]
[393213034,1762325433412,-791.0,0.00019507,2]
[393213035,1762325433424,-936.0,0.00019507,2]
[393213036,1762325433438,-500.0,0.00019507,2]
[393213037,1762325433450,-463.0,0.00019507,2]
[393213038,1762325433462,-500.0,0.00019507,2]
[393213039,1762325433474,-160.21074397,0.00019507,2]
[393213040,1762325433487,-176.75232676,0.00019507,2]
[393213041,1762325433500,-500.0,0.00019507,2]
[393213042,1762325433512,-266.65131533,0.00019507,2]
[393213043,1762325433525,-500.0,0.00019507,2]
[393213044,1762325433535,-1112.0,0.00019562,2]
[393213045,1762325433547,-791.0,0.00019562,2]
[393213046,1762325433559,-936.0,0.00019562,2]
[393213047,1762325433571,-500.0,0.00019562,2]
[393213048,1762325433582,-463.0,0.00019562,2]
[393213049,1762325433595,-500.0,0.00019562,2]
[393213050,1762325433607,-500.0,0.00019562,2]
[393213051,1762325433619,-500.0,0.00019562,2]
[393213052,1762325433630,-150.0,0.00019602,2]
[393213053,1762325433641,-1112.0,0.00019616,2]
[393213054,1762325433650,-791.0,0.00019616,2]
[393213055,1762325433661,-936.0,0.00019616,2]
[393213056,1762325433673,-500.0,0.00019616,2]
[393213057,1762325433683,-463.0,0.00019616,2]
[393213058,1762325433694,-477.07885092,0.00019616,2]
[393213059,1762325433706,-500.0,0.00019616,2]
[393213060,1762325433717,-500.0,0.00019616,2]
[393213061,1762325433729,-1112.0,0.00019671,2]
[393213062,1762325433740,-791.0,0.00019671,2]
[393213063,1762325433753,-936.0,0.00019671,2]
[393213064,1762325433765,-188.51109505,0.00019671,2]
[393213065,1762325433777,-463.0,0.00019671,2]
[393213066,1762325433790,-500.0,0.00019671,2]
[393213067,1762325433802,-500.0,0.00019671,2]
[393213068,1762325433812,-160.0,0.00019694,2]
[393213069,1762325433822,-1112.0,0.00019726,2]
[393213070,1762325433832,-791.0,0.00019726,2]
[393213071,1762325433842,-936.0,0.00019726,2]
[393213072,1762325433853,-463.0,0.00019726,2]
[393213073,1762325433864,-500.0,0.00019726,2]
[393213074,1762325433878,-500.0,0.00019726,2]
[393213075,1762325433889,-1112.0,0.00019781,2]
[393213076,1762325433899,-791.0,0.00019781,2]
[393213077,1762325433909,-936.0,0.00019781,2]
[393213078,1762325433920,-463.0,0.00019781,2]
[393213079,1762325433930,-500.0,0.00019781,2]
[393213080,1762325433941,-500.0,0.00019781,2]
[393213081,1762325433953,-1112.0,0.00019836,2]
[393213082,1762325433963,-791.0,0.00019836,2]
[393213083,1762325433973,-936.0,0.00019836,2]
[393213084,1762325433983,-463.0,0.00019836,2]
[393213085,1762325433993,-355.71755696,0.00019836,2]
[393213086,1762325434004,-500.0,0.00019836,2]
[393213087,1762325434014,-1112.0,0.0001989,2]
[393213088,1762325434025,-791.0,0.0001989,2]
[393213089,1762325434041,-936.0,0.0001989,2]
[393213090,1762325434051,-463.0,0.0001989,2]
[393213091,1762325434062,-500.0,0.0001989,2]
[393213092,1762325434074,-1112.0,0.00019945,2]
[393213093,1762325434085,-791.0,0.00019945,2]
[393213094,1762325434097,-936.0,0.00019945,2]
[393213095,1762325434109,-463.0,0.00019945,2]
[393213096,1762325434120,-393.20219622,0.00019945,2]
[393213097,1762325434130,-502.31606533,0.00019976,2]
[393213098,1762325434141,-1112.0,0.0002,2]
[393213099,1762325434152,-791.0,0.0002,2]
[393213100,1762325434162,-936.0,0.0002,2]
[393213101,1762325434173,-463.0,0.0002,2]
[393213102,1762325434183,-342.20366178,0.00020022,2]
[393213103,1762325434194,-1112.0,0.00020055,2]
[393213104,1762325434204,-791.0,0.00020055,2]
[393213105,1762325434215,-936.0,0.00020055,2]
[393213106,1762325434225,-463.0,0.00020055,2]
[393213107,1762325434236,-1111.98841619,0.00020105,2]
[393213108,1762325434247,-1112.0,0.0002011,2]
[393213109,1762325434257,-791.0,0.0002011,2]
[393213110,1762325434268,-936.0,0.0002011,2]
[393213111,1762325434278,-463.0,0.0002011,2]
[393213112,1762325434289,-1112.0,0.00020164,2]
[393213113,1762325434300,-791.0,0.00020164,2]
[393213114,1762325434311,-936.0,0.00020164,2]
[393213115,1762325434321,-463.0,0.00020164,2]
[393213116,1762325434332,-1112.0,0.00020219,2]
[393213117,1762325434343,-791.0,0.00020219,2]
[393213118,1762325434354,-936.0,0.00020219,2]
[393213119,1762325434365,-463.0,0.00020219,2]
[393213120,1762325434375,-260.0,0.00020242,2]
[393213121,1762325434386,-506.17177746,0.00020255,2]
[393213122,1762325434396,-500.0,0.00020268,2]
[393213123,1762325434407,-500.0,0.00020268,2]
[393213124,1762325434418,-1112.0,0.00020274,2]
[393213125,1762325434429,-791.0,0.00020274,2]
[393213126,1762325434439,-936.0,0.00020274,2]
[393213127,1762325434450,-463.0,0.00020274,2]
[393213128,1762325434461,-150.0,0.00020328,2]
[393213129,1762325434471,-1112.0,0.00020329,2]
[393213130,1762325434483,-791.0,0.00020329,2]
[393213131,1762325434493,-936.0,0.00020329,2]
[393213132,1762325434504,-463.0,0.00020329,2]